{"text_format":"1","workbook":"xlsx","n_sheets":3,"sheets":["Сводная","Продажи","Итоги"],"not_rendered":{"charts":0,"images":0,"macros":1,"external_links":0,"defined_names":0,"comments":0,"pivot_tables":1},"unopened":[],"bounds":{"document_bytes":16777216,"sheet_cells":100000,"rows_first":2000,"rows_last":500,"rows_between":2000,"halvings":0,"cell_chars":16384,"cell_head_chars":4096},"cells_cut":0,"cells_raw":0,"read":"whole","date_system":"1900"}

{"sheet":"Сводная","index":0,"n_rows":7,"n_cols":4,"rows_kept":7,"cut":false,"hidden":false,"merged":[]}
["Дата","Июль"]
["Товар","Диваны"]
[]
["Названия строк","Сумма по полю Кол-во","Сумма по полю Сумма","Сумма по полю Сумма накопит"]
["Иванов",5,350,23640]
["Сидоров",12,840,21930]
["Общий итог",17,1190,45570]

{"sheet":"Продажи","index":1,"n_rows":76,"n_cols":14,"rows_kept":76,"cut":false,"hidden":false,"merged":[]}
[]
[]
[]
[null,null,null,"Дата","Товар","Продавец","Кол-во","Сумма","Сумма накопит",null,null,null,"Фрукт","Цена"]
[null,null,null,"Январь","Стулья","Петров",6,{"$f":"IFERROR(Продажи_tb[[#This Row],[Кол-во]]*VLOOKUP(Продажи_tb[[#This Row],[Товар]],$M$5:$N$7,2,),\"\")","v":300},{"$f":"SUM($H$4:H4)","v":0},null,null,null,"Стулья",50]
[null,null,null,"Январь","Табретки","Петров",13,{"$f":"IFERROR(Продажи_tb[[#This Row],[Кол-во]]*VLOOKUP(Продажи_tb[[#This Row],[Товар]],$M$5:$N$7,2,),\"\")","v":780},{"$f":"SUM($H$4:H5)","v":300},null,null,null,"Табретки",60]
[null,null,null,"Январь","Диваны","Петров",10,{"$f":"IFERROR(Продажи_tb[[#This Row],[Кол-во]]*VLOOKUP(Продажи_tb[[#This Row],[Товар]],$M$5:$N$7,2,),\"\")","v":700},{"$f":"SUM($H$4:H6)","v":1080},null,null,null,"Диваны",70]
[null,null,null,"Январь","Стулья","Иванов",3,{"$f":"IFERROR(Продажи_tb[[#This Row],[Кол-во]]*VLOOKUP(Продажи_tb[[#This Row],[Товар]],$M$5:$N$7,2,),\"\")","v":150},{"$f":"SUM($H$4:H7)","v":1780}]
[null,null,null,"Январь","Стулья","Сидоров",6,{"$f":"IFERROR(Продажи_tb[[#This Row],[Кол-во]]*VLOOKUP(Продажи_tb[[#This Row],[Товар]],$M$5:$N$7,2,),\"\")","v":300},{"$f":"SUM($H$4:H8)","v":1930}]
[null,null,null,"Январь","Диваны","Иванов",8,{"$f":"IFERROR(Продажи_tb[[#This Row],[Кол-во]]*VLOOKUP(Продажи_tb[[#This Row],[Товар]],$M$5:$N$7,2,),\"\")","v":560},{"$f":"SUM($H$4:H9)","v":2230}]
[null,null,null,"Февраль","Стулья","Петров",8,{"$f":"IFERROR(Продажи_tb[[#This Row],[Кол-во]]*VLOOKUP(Продажи_tb[[#This Row],[Товар]],$M$5:$N$7,2,),\"\")","v":400},{"$f":"SUM($H$4:H10)","v":2790}]
[null,null,null,"Февраль","Табретки","Петров",15,{"$f":"IFERROR(Продажи_tb[[#This Row],[Кол-во]]*VLOOKUP(Продажи_tb[[#This Row],[Товар]],$M$5:$N$7,2,),\"\")","v":900},{"$f":"SUM($H$4:H11)","v":3190}]
[null,null,null,"Февраль","Диваны","Петров",12,{"$f":"IFERROR(Продажи_tb[[#This Row],[Кол-во]]*VLOOKUP(Продажи_tb[[#This Row],[Товар]],$M$5:$N$7,2,),\"\")","v":840},{"$f":"SUM($H$4:H12)","v":4090}]
[null,null,null,"Февраль","Стулья","Иванов",11,{"$f":"IFERROR(Продажи_tb[[#This Row],[Кол-во]]*VLOOKUP(Продажи_tb[[#This Row],[Товар]],$M$5:$N$7,2,),\"\")","v":550},{"$f":"SUM($H$4:H13)","v":4930}]
[null,null,null,"Февраль","Табретки","Иванов",14,{"$f":"IFERROR(Продажи_tb[[#This Row],[Кол-во]]*VLOOKUP(Продажи_tb[[#This Row],[Товар]],$M$5:$N$7,2,),\"\")","v":840},{"$f":"SUM($H$4:H14)","v":5480}]
[null,null,null,"Февраль","Диваны","Сидоров",9,{"$f":"IFERROR(Продажи_tb[[#This Row],[Кол-во]]*VLOOKUP(Продажи_tb[[#This Row],[Товар]],$M$5:$N$7,2,),\"\")","v":630},{"$f":"SUM($H$4:H15)","v":6320}]
[null,null,null,"Март","Стулья","Петров",8,{"$f":"IFERROR(Продажи_tb[[#This Row],[Кол-во]]*VLOOKUP(Продажи_tb[[#This Row],[Товар]],$M$5:$N$7,2,),\"\")","v":400},{"$f":"SUM($H$4:H16)","v":6950}]
[null,null,null,"Март","Табретки","Петров",15,{"$f":"IFERROR(Продажи_tb[[#This Row],[Кол-во]]*VLOOKUP(Продажи_tb[[#This Row],[Товар]],$M$5:$N$7,2,),\"\")","v":900},{"$f":"SUM($H$4:H17)","v":7350}]
[null,null,null,"Март","Диваны","Петров",11,{"$f":"IFERROR(Продажи_tb[[#This Row],[Кол-во]]*VLOOKUP(Продажи_tb[[#This Row],[Товар]],$M$5:$N$7,2,),\"\")","v":770},{"$f":"SUM($H$4:H18)","v":8250}]
[null,null,null,"Март","Стулья","Иванов",12,{"$f":"IFERROR(Продажи_tb[[#This Row],[Кол-во]]*VLOOKUP(Продажи_tb[[#This Row],[Товар]],$M$5:$N$7,2,),\"\")","v":600},{"$f":"SUM($H$4:H19)","v":9020}]
[null,null,null,"Март","Табретки","Сидоров",10,{"$f":"IFERROR(Продажи_tb[[#This Row],[Кол-во]]*VLOOKUP(Продажи_tb[[#This Row],[Товар]],$M$5:$N$7,2,),\"\")","v":600},{"$f":"SUM($H$4:H20)","v":9620}]
[null,null,null,"Март","Диваны","Иванов",6,{"$f":"IFERROR(Продажи_tb[[#This Row],[Кол-во]]*VLOOKUP(Продажи_tb[[#This Row],[Товар]],$M$5:$N$7,2,),\"\")","v":420},{"$f":"SUM($H$4:H21)","v":10220}]
[null,null,null,"Апрель","Стулья","Петров",3,{"$f":"IFERROR(Продажи_tb[[#This Row],[Кол-во]]*VLOOKUP(Продажи_tb[[#This Row],[Товар]],$M$5:$N$7,2,),\"\")","v":150},{"$f":"SUM($H$4:H22)","v":10640}]
[null,null,null,"Апрель","Табретки","Сидоров",13,{"$f":"IFERROR(Продажи_tb[[#This Row],[Кол-во]]*VLOOKUP(Продажи_tb[[#This Row],[Товар]],$M$5:$N$7,2,),\"\")","v":780},{"$f":"SUM($H$4:H23)","v":10790}]
[null,null,null,"Апрель","Диваны","Петров",13,{"$f":"IFERROR(Продажи_tb[[#This Row],[Кол-во]]*VLOOKUP(Продажи_tb[[#This Row],[Товар]],$M$5:$N$7,2,),\"\")","v":910},{"$f":"SUM($H$4:H24)","v":11570}]
[null,null,null,"Апрель","Стулья","Сидоров",7,{"$f":"IFERROR(Продажи_tb[[#This Row],[Кол-во]]*VLOOKUP(Продажи_tb[[#This Row],[Товар]],$M$5:$N$7,2,),\"\")","v":350},{"$f":"SUM($H$4:H25)","v":12480}]
[null,null,null,"Апрель","Табретки","Иванов",9,{"$f":"IFERROR(Продажи_tb[[#This Row],[Кол-во]]*VLOOKUP(Продажи_tb[[#This Row],[Товар]],$M$5:$N$7,2,),\"\")","v":540},{"$f":"SUM($H$4:H26)","v":12830}]
[null,null,null,"Апрель","Диваны","Иванов",9,{"$f":"IFERROR(Продажи_tb[[#This Row],[Кол-во]]*VLOOKUP(Продажи_tb[[#This Row],[Товар]],$M$5:$N$7,2,),\"\")","v":630},{"$f":"SUM($H$4:H27)","v":13370}]
[null,null,null,"Май","Стулья","Сидоров",9,{"$f":"IFERROR(Продажи_tb[[#This Row],[Кол-во]]*VLOOKUP(Продажи_tb[[#This Row],[Товар]],$M$5:$N$7,2,),\"\")","v":450},{"$f":"SUM($H$4:H28)","v":14000}]
[null,null,null,"Май","Табретки","Петров",13,{"$f":"IFERROR(Продажи_tb[[#This Row],[Кол-во]]*VLOOKUP(Продажи_tb[[#This Row],[Товар]],$M$5:$N$7,2,),\"\")","v":780},{"$f":"SUM($H$4:H29)","v":14450}]
[null,null,null,"Май","Диваны","Петров",8,{"$f":"IFERROR(Продажи_tb[[#This Row],[Кол-во]]*VLOOKUP(Продажи_tb[[#This Row],[Товар]],$M$5:$N$7,2,),\"\")","v":560},{"$f":"SUM($H$4:H30)","v":15230}]
[null,null,null,"Май","Стулья","Иванов",9,{"$f":"IFERROR(Продажи_tb[[#This Row],[Кол-во]]*VLOOKUP(Продажи_tb[[#This Row],[Товар]],$M$5:$N$7,2,),\"\")","v":450},{"$f":"SUM($H$4:H31)","v":15790}]
[null,null,null,"Май","Табретки","Иванов",11,{"$f":"IFERROR(Продажи_tb[[#This Row],[Кол-во]]*VLOOKUP(Продажи_tb[[#This Row],[Товар]],$M$5:$N$7,2,),\"\")","v":660},{"$f":"SUM($H$4:H32)","v":16240}]
[null,null,null,"Май","Диваны","Сидоров",8,{"$f":"IFERROR(Продажи_tb[[#This Row],[Кол-во]]*VLOOKUP(Продажи_tb[[#This Row],[Товар]],$M$5:$N$7,2,),\"\")","v":560},{"$f":"SUM($H$4:H33)","v":16900}]
[null,null,null,"Июнь","Стулья","Петров",6,{"$f":"IFERROR(Продажи_tb[[#This Row],[Кол-во]]*VLOOKUP(Продажи_tb[[#This Row],[Товар]],$M$5:$N$7,2,),\"\")","v":300},{"$f":"SUM($H$4:H34)","v":17460}]
[null,null,null,"Июнь","Табретки","Петров",7,{"$f":"IFERROR(Продажи_tb[[#This Row],[Кол-во]]*VLOOKUP(Продажи_tb[[#This Row],[Товар]],$M$5:$N$7,2,),\"\")","v":420},{"$f":"SUM($H$4:H35)","v":17760}]
[null,null,null,"Июнь","Диваны","Петров",14,{"$f":"IFERROR(Продажи_tb[[#This Row],[Кол-во]]*VLOOKUP(Продажи_tb[[#This Row],[Товар]],$M$5:$N$7,2,),\"\")","v":980},{"$f":"SUM($H$4:H36)","v":18180}]
[null,null,null,"Июнь","Стулья","Иванов",4,{"$f":"IFERROR(Продажи_tb[[#This Row],[Кол-во]]*VLOOKUP(Продажи_tb[[#This Row],[Товар]],$M$5:$N$7,2,),\"\")","v":200},{"$f":"SUM($H$4:H37)","v":19160}]
[null,null,null,"Июнь","Табретки","Сидоров",13,{"$f":"IFERROR(Продажи_tb[[#This Row],[Кол-во]]*VLOOKUP(Продажи_tb[[#This Row],[Товар]],$M$5:$N$7,2,),\"\")","v":780},{"$f":"SUM($H$4:H38)","v":19360}]
[null,null,null,"Июнь","Диваны","Иванов",8,{"$f":"IFERROR(Продажи_tb[[#This Row],[Кол-во]]*VLOOKUP(Продажи_tb[[#This Row],[Товар]],$M$5:$N$7,2,),\"\")","v":560},{"$f":"SUM($H$4:H39)","v":20140}]
[null,null,null,"Июль","Стулья","Петров",9,{"$f":"IFERROR(Продажи_tb[[#This Row],[Кол-во]]*VLOOKUP(Продажи_tb[[#This Row],[Товар]],$M$5:$N$7,2,),\"\")","v":450},{"$f":"SUM($H$4:H40)","v":20700}]
[null,null,null,"Июль","Табретки","Сидоров",13,{"$f":"IFERROR(Продажи_tb[[#This Row],[Кол-во]]*VLOOKUP(Продажи_tb[[#This Row],[Товар]],$M$5:$N$7,2,),\"\")","v":780},{"$f":"SUM($H$4:H41)","v":21150}]
[null,null,null,"Июль","Диваны","Сидоров",12,{"$f":"IFERROR(Продажи_tb[[#This Row],[Кол-во]]*VLOOKUP(Продажи_tb[[#This Row],[Товар]],$M$5:$N$7,2,),\"\")","v":840},{"$f":"SUM($H$4:H42)","v":21930}]
[null,null,null,"Июль","Стулья","Иванов",15,{"$f":"IFERROR(Продажи_tb[[#This Row],[Кол-во]]*VLOOKUP(Продажи_tb[[#This Row],[Товар]],$M$5:$N$7,2,),\"\")","v":750},{"$f":"SUM($H$4:H43)","v":22770}]
[null,null,null,"Июль","Табретки","Иванов",2,{"$f":"IFERROR(Продажи_tb[[#This Row],[Кол-во]]*VLOOKUP(Продажи_tb[[#This Row],[Товар]],$M$5:$N$7,2,),\"\")","v":120},{"$f":"SUM($H$4:H44)","v":23520}]
[null,null,null,"Июль","Диваны","Иванов",5,{"$f":"IFERROR(Продажи_tb[[#This Row],[Кол-во]]*VLOOKUP(Продажи_tb[[#This Row],[Товар]],$M$5:$N$7,2,),\"\")","v":350},{"$f":"SUM($H$4:H45)","v":23640}]
[null,null,null,"Август","Стулья","Сидоров",5,{"$f":"IFERROR(Продажи_tb[[#This Row],[Кол-во]]*VLOOKUP(Продажи_tb[[#This Row],[Товар]],$M$5:$N$7,2,),\"\")","v":250},{"$f":"SUM($H$4:H46)","v":23990}]
[null,null,null,"Август","Табретки","Петров",13,{"$f":"IFERROR(Продажи_tb[[#This Row],[Кол-во]]*VLOOKUP(Продажи_tb[[#This Row],[Товар]],$M$5:$N$7,2,),\"\")","v":780},{"$f":"SUM($H$4:H47)","v":24240}]
[null,null,null,"Август","Диваны","Сидоров",6,{"$f":"IFERROR(Продажи_tb[[#This Row],[Кол-во]]*VLOOKUP(Продажи_tb[[#This Row],[Товар]],$M$5:$N$7,2,),\"\")","v":420},{"$f":"SUM($H$4:H48)","v":25020}]
[null,null,null,"Август","Стулья","Иванов",3,{"$f":"IFERROR(Продажи_tb[[#This Row],[Кол-во]]*VLOOKUP(Продажи_tb[[#This Row],[Товар]],$M$5:$N$7,2,),\"\")","v":150},{"$f":"SUM($H$4:H49)","v":25440}]
[null,null,null,"Август","Табретки","Сидоров",13,{"$f":"IFERROR(Продажи_tb[[#This Row],[Кол-во]]*VLOOKUP(Продажи_tb[[#This Row],[Товар]],$M$5:$N$7,2,),\"\")","v":780},{"$f":"SUM($H$4:H50)","v":25590}]
[null,null,null,"Август","Диваны","Иванов",6,{"$f":"IFERROR(Продажи_tb[[#This Row],[Кол-во]]*VLOOKUP(Продажи_tb[[#This Row],[Товар]],$M$5:$N$7,2,),\"\")","v":420},{"$f":"SUM($H$4:H51)","v":26370}]
[null,null,null,"Сентябрь","Стулья","Петров",11,{"$f":"IFERROR(Продажи_tb[[#This Row],[Кол-во]]*VLOOKUP(Продажи_tb[[#This Row],[Товар]],$M$5:$N$7,2,),\"\")","v":550},{"$f":"SUM($H$4:H52)","v":26790}]
[null,null,null,"Сентябрь","Табретки","Петров",3,{"$f":"IFERROR(Продажи_tb[[#This Row],[Кол-во]]*VLOOKUP(Продажи_tb[[#This Row],[Товар]],$M$5:$N$7,2,),\"\")","v":180},{"$f":"SUM($H$4:H53)","v":27340}]
[null,null,null,"Сентябрь","Диваны","Петров",12,{"$f":"IFERROR(Продажи_tb[[#This Row],[Кол-во]]*VLOOKUP(Продажи_tb[[#This Row],[Товар]],$M$5:$N$7,2,),\"\")","v":840},{"$f":"SUM($H$4:H54)","v":27520}]
[null,null,null,"Сентябрь","Стулья","Иванов",2,{"$f":"IFERROR(Продажи_tb[[#This Row],[Кол-во]]*VLOOKUP(Продажи_tb[[#This Row],[Товар]],$M$5:$N$7,2,),\"\")","v":100},{"$f":"SUM($H$4:H55)","v":28360}]
[null,null,null,"Сентябрь","Табретки","Иванов",13,{"$f":"IFERROR(Продажи_tb[[#This Row],[Кол-во]]*VLOOKUP(Продажи_tb[[#This Row],[Товар]],$M$5:$N$7,2,),\"\")","v":780},{"$f":"SUM($H$4:H56)","v":28460}]
[null,null,null,"Сентябрь","Диваны","Сидоров",4,{"$f":"IFERROR(Продажи_tb[[#This Row],[Кол-во]]*VLOOKUP(Продажи_tb[[#This Row],[Товар]],$M$5:$N$7,2,),\"\")","v":280},{"$f":"SUM($H$4:H57)","v":29240}]
[null,null,null,"Октябрь","Стулья","Петров",3,{"$f":"IFERROR(Продажи_tb[[#This Row],[Кол-во]]*VLOOKUP(Продажи_tb[[#This Row],[Товар]],$M$5:$N$7,2,),\"\")","v":150},{"$f":"SUM($H$4:H58)","v":29520}]
[null,null,null,"Октябрь","Табретки","Петров",3,{"$f":"IFERROR(Продажи_tb[[#This Row],[Кол-во]]*VLOOKUP(Продажи_tb[[#This Row],[Товар]],$M$5:$N$7,2,),\"\")","v":180},{"$f":"SUM($H$4:H59)","v":29670}]
[null,null,null,"Октябрь","Диваны","Петров",4,{"$f":"IFERROR(Продажи_tb[[#This Row],[Кол-во]]*VLOOKUP(Продажи_tb[[#This Row],[Товар]],$M$5:$N$7,2,),\"\")","v":280},{"$f":"SUM($H$4:H60)","v":29850}]
[null,null,null,"Октябрь","Стулья","Иванов",2,{"$f":"IFERROR(Продажи_tb[[#This Row],[Кол-во]]*VLOOKUP(Продажи_tb[[#This Row],[Товар]],$M$5:$N$7,2,),\"\")","v":100},{"$f":"SUM($H$4:H61)","v":30130}]
[null,null,null,"Октябрь","Табретки","Иванов",5,{"$f":"IFERROR(Продажи_tb[[#This Row],[Кол-во]]*VLOOKUP(Продажи_tb[[#This Row],[Товар]],$M$5:$N$7,2,),\"\")","v":300},{"$f":"SUM($H$4:H62)","v":30230}]
[null,null,null,"Октябрь","Диваны","Сидоров",10,{"$f":"IFERROR(Продажи_tb[[#This Row],[Кол-во]]*VLOOKUP(Продажи_tb[[#This Row],[Товар]],$M$5:$N$7,2,),\"\")","v":700},{"$f":"SUM($H$4:H63)","v":30530}]
[null,null,null,"Ноябрь","Стулья","Петров",11,{"$f":"IFERROR(Продажи_tb[[#This Row],[Кол-во]]*VLOOKUP(Продажи_tb[[#This Row],[Товар]],$M$5:$N$7,2,),\"\")","v":550},{"$f":"SUM($H$4:H64)","v":31230}]
[null,null,null,"Ноябрь","Табретки","Петров",15,{"$f":"IFERROR(Продажи_tb[[#This Row],[Кол-во]]*VLOOKUP(Продажи_tb[[#This Row],[Товар]],$M$5:$N$7,2,),\"\")","v":900},{"$f":"SUM($H$4:H65)","v":31780}]
[null,null,null,"Ноябрь","Диваны","Петров",7,{"$f":"IFERROR(Продажи_tb[[#This Row],[Кол-во]]*VLOOKUP(Продажи_tb[[#This Row],[Товар]],$M$5:$N$7,2,),\"\")","v":490},{"$f":"SUM($H$4:H66)","v":32680}]
[null,null,null,"Ноябрь","Стулья","Иванов",4,{"$f":"IFERROR(Продажи_tb[[#This Row],[Кол-во]]*VLOOKUP(Продажи_tb[[#This Row],[Товар]],$M$5:$N$7,2,),\"\")","v":200},{"$f":"SUM($H$4:H67)","v":33170}]
[null,null,null,"Ноябрь","Табретки","Сидоров",11,{"$f":"IFERROR(Продажи_tb[[#This Row],[Кол-во]]*VLOOKUP(Продажи_tb[[#This Row],[Товар]],$M$5:$N$7,2,),\"\")","v":660},{"$f":"SUM($H$4:H68)","v":33370}]
[null,null,null,"Ноябрь","Диваны","Сидоров",8,{"$f":"IFERROR(Продажи_tb[[#This Row],[Кол-во]]*VLOOKUP(Продажи_tb[[#This Row],[Товар]],$M$5:$N$7,2,),\"\")","v":560},{"$f":"SUM($H$4:H69)","v":34030}]
[null,null,null,"Декабрь","Стулья","Петров",14,{"$f":"IFERROR(Продажи_tb[[#This Row],[Кол-во]]*VLOOKUP(Продажи_tb[[#This Row],[Товар]],$M$5:$N$7,2,),\"\")","v":700},{"$f":"SUM($H$4:H70)","v":34590}]
[null,null,null,"Декабрь","Табретки","Сидоров",2,{"$f":"IFERROR(Продажи_tb[[#This Row],[Кол-во]]*VLOOKUP(Продажи_tb[[#This Row],[Товар]],$M$5:$N$7,2,),\"\")","v":120},{"$f":"SUM($H$4:H71)","v":35290}]
[null,null,null,"Декабрь","Диваны","Петров",7,{"$f":"IFERROR(Продажи_tb[[#This Row],[Кол-во]]*VLOOKUP(Продажи_tb[[#This Row],[Товар]],$M$5:$N$7,2,),\"\")","v":490},{"$f":"SUM($H$4:H72)","v":35410}]
[null,null,null,"Декабрь","Стулья","Иванов",6,{"$f":"IFERROR(Продажи_tb[[#This Row],[Кол-во]]*VLOOKUP(Продажи_tb[[#This Row],[Товар]],$M$5:$N$7,2,),\"\")","v":300},{"$f":"SUM($H$4:H73)","v":35900}]
[null,null,null,"Декабрь","Табретки","Иванов",11,{"$f":"IFERROR(Продажи_tb[[#This Row],[Кол-во]]*VLOOKUP(Продажи_tb[[#This Row],[Товар]],$M$5:$N$7,2,),\"\")","v":660},{"$f":"SUM($H$4:H74)","v":36200}]
[null,null,null,"Декабрь","Диваны","Иванов",3,{"$f":"IFERROR(Продажи_tb[[#This Row],[Кол-во]]*VLOOKUP(Продажи_tb[[#This Row],[Товар]],$M$5:$N$7,2,),\"\")","v":210},{"$f":"SUM($H$4:H75)","v":36860}]

{"sheet":"Итоги","index":2,"n_rows":14,"n_cols":6,"rows_kept":14,"cut":false,"hidden":false,"merged":[]}
[]
[null,null,null,"Месяц","Товар"]
["Январь",null,null,"Июль","Диваны"]
["Февраль"]
["Март"]
["Апрель",null,null,"Продавец","Кол-во","Сумма"]
["Май",null,null,{"$f":"IFERROR(INDEX(Продажи_tb[Продавец],MATCH(1,INDEX((COUNTIF(Итоги!$D$6:D6,Продажи_tb[Продавец])=0)*(Продажи_tb[Дата]=Критерии_tb[Месяц])*(Продажи_tb[Товар]=Критерии_tb[Товар]),),)),\"\")","v":"Сидоров"},{"$f":"IFERROR(INDEX(Продажи_tb[Кол-во],MATCH(1,INDEX((COUNTIF(Итоги!$E$6:E6,Продажи_tb[Кол-во])=0)*(Продажи_tb[Дата]=Критерии_tb[Месяц])*(Продажи_tb[Товар]=Критерии_tb[Товар]),),)),\"\")","v":12},{"$f":"IFERROR(INDEX(Продажи_tb[Сумма],MATCH(1,INDEX((COUNTIF(Итоги!$F$6:F6,Продажи_tb[Сумма])=0)*(Продажи_tb[Дата]=Критерии_tb[Месяц])*(Продажи_tb[Товар]=Критерии_tb[Товар]),),)),\"\")","v":840}]
["Июнь",null,null,{"$f":"IFERROR(INDEX(Продажи_tb[Продавец],MATCH(1,INDEX((COUNTIF(Итоги!$D$6:D7,Продажи_tb[Продавец])=0)*(Продажи_tb[Дата]=Критерии_tb[Месяц])*(Продажи_tb[Товар]=Критерии_tb[Товар]),),)),\"\")","v":"Иванов"},{"$f":"IFERROR(INDEX(Продажи_tb[Кол-во],MATCH(1,INDEX((COUNTIF(Итоги!$E$6:E7,Продажи_tb[Кол-во])=0)*(Продажи_tb[Дата]=Критерии_tb[Месяц])*(Продажи_tb[Товар]=Критерии_tb[Товар]),),)),\"\")","v":5},{"$f":"IFERROR(INDEX(Продажи_tb[Сумма],MATCH(1,INDEX((COUNTIF(Итоги!$F$6:F7,Продажи_tb[Сумма])=0)*(Продажи_tb[Дата]=Критерии_tb[Месяц])*(Продажи_tb[Товар]=Критерии_tb[Товар]),),)),\"\")","v":350}]
["Июль",null,null,{"$f":"IFERROR(INDEX(Продажи_tb[Продавец],MATCH(1,INDEX((COUNTIF(Итоги!$D$6:D8,Продажи_tb[Продавец])=0)*(Продажи_tb[Дата]=Критерии_tb[Месяц])*(Продажи_tb[Товар]=Критерии_tb[Товар]),),)),\"\")","v":""},{"$f":"IFERROR(INDEX(Продажи_tb[Кол-во],MATCH(1,INDEX((COUNTIF(Итоги!$E$6:E8,Продажи_tb[Кол-во])=0)*(Продажи_tb[Дата]=Критерии_tb[Месяц])*(Продажи_tb[Товар]=Критерии_tb[Товар]),),)),\"\")","v":""},{"$f":"IFERROR(INDEX(Продажи_tb[Сумма],MATCH(1,INDEX((COUNTIF(Итоги!$F$6:F8,Продажи_tb[Сумма])=0)*(Продажи_tb[Дата]=Критерии_tb[Месяц])*(Продажи_tb[Товар]=Критерии_tb[Товар]),),)),\"\")","v":""}]
["Август"]
["Сентябрь"]
["Октябрь"]
["Ноябрь"]
["Декабрь"]